[Event "*** SCC Grand Prix: Titled Tuesday Blitz"]
[Site "Chess.com"]
[Date "2020.06.09"]
[Round "10"]
[White "Boninknights"]
[Black "BursaBBSatranc"]
[Result "0-1"]
[WhiteElo "2361"]
[BlackElo "2529"]
[TimeControl "180+1"]
[EndTime "10:55:28 PDT"]
[Termination "BursaBBSatranc won by resignation"]

1. d4 {[%clk 0:02:59.7]} 1... d5 {[%clk 0:02:59.9]} 2. Nf3 {[%clk 0:02:59.1]}
2... Nf6 {[%clk 0:02:59.9]} 3. c4 {[%clk 0:02:58.1]} 3... c6 {[%clk 0:03:00.3]}
4. Qb3 {[%clk 0:02:56.5]} 4... Qb6 {[%clk 0:02:53.3]} 5. Nc3 {[%clk 0:02:55.3]}
5... dxc4 {[%clk 0:02:38.7]} 6. Qxc4 {[%clk 0:02:52.9]} 6... Be6 {[%clk
0:02:37.2]} 7. Qd3 {[%clk 0:02:51.6]} 7... g6 {[%clk 0:02:35.7]} 8. g3 {[%clk
0:02:49.9]} 8... Bg7 {[%clk 0:02:33.2]} 9. Bg2 {[%clk 0:02:49.4]} 9... O-O
{[%clk 0:02:33.4]} 10. O-O {[%clk 0:02:48.8]} 10... Rd8 {[%clk 0:02:33.1]} 11.
Qc2 {[%clk 0:02:42.4]} 11... Na6 {[%clk 0:02:26]} 12. a3 {[%clk 0:02:31.4]}
12... Bb3 {[%clk 0:02:04.1]} 13. Qb1 {[%clk 0:02:24.8]} 13... c5 {[%clk
0:01:55.2]} 14. dxc5 {[%clk 0:02:14.8]} 14... Nxc5 {[%clk 0:01:56.1]} 15. h3
{[%clk 0:02:03.5]} 15... Rac8 {[%clk 0:01:31.5]} 16. Be3 {[%clk 0:01:59.2]}
16... Qa6 {[%clk 0:01:26.9]} 17. Nd2 {[%clk 0:01:51.1]} 17... Be6 {[%clk
0:01:16.9]} 18. Bxc5 {[%clk 0:01:22.3]} 18... Rxc5 {[%clk 0:01:15.4]} 19. Nde4
{[%clk 0:01:20.4]} 19... Nxe4 {[%clk 0:01:12.6]} 20. Nxe4 {[%clk 0:01:20]} 20...
Rb5 {[%clk 0:01:02.2]} 21. Rd1 {[%clk 0:01:17.4]} 21... Rxd1+ {[%clk 0:00:53.7]}
22. Qxd1 {[%clk 0:01:16.1]} 22... Bxb2 {[%clk 0:00:54.3]} 23. Qd8+ {[%clk
0:01:10.6]} 23... Kg7 {[%clk 0:00:54.3]} 24. Rd1 {[%clk 0:01:09]} 24... Qxa3
{[%clk 0:00:50.5]} 25. Ng5 {[%clk 0:01:02.2]} 25... Rxg5 {[%clk 0:00:49.2]} 0-1

[Event "*** SCC Grand Prix: Titled Tuesday Blitz"]
[Site "Chess.com"]
[Date "2020.06.09"]
[Round "10"]
[White "2008king"]
[Black "Logman74"]
[Result "0-1"]
[WhiteElo "2181"]
[BlackElo "2345"]
[TimeControl "180+1"]
[EndTime "10:55:33 PDT"]
[Termination "Logman74 won by resignation"]

1. e4 {[%clk 0:03:00.9]} 1... e5 {[%clk 0:02:57.2]} 2. Nf3 {[%clk 0:02:58.9]}
2... Nc6 {[%clk 0:02:56.3]} 3. d4 {[%clk 0:02:58]} 3... exd4 {[%clk 0:02:55.7]}
4. Nxd4 {[%clk 0:02:58.9]} 4... Nf6 {[%clk 0:02:55.6]} 5. Nxc6 {[%clk
0:02:57.5]} 5... bxc6 {[%clk 0:02:54.8]} 6. e5 {[%clk 0:02:56.8]} 6... Qe7
{[%clk 0:02:51.2]} 7. Qe2 {[%clk 0:02:56.7]} 7... Nd5 {[%clk 0:02:50.8]} 8. h4
{[%clk 0:02:56.7]} 8... g6 {[%clk 0:02:47.2]} 9. Bg5 {[%clk 0:02:50.8]} 9...
Qb4+ {[%clk 0:02:45.8]} 10. c3 {[%clk 0:02:50.4]} 10... Qb6 {[%clk 0:02:44.1]}
11. Bf6 {[%clk 0:02:38.3]} 11... Rg8 {[%clk 0:02:40.2]} 12. g3 {[%clk
0:02:33.1]} 12... Ba6 {[%clk 0:02:37.3]} 13. Qxa6 {[%clk 0:02:01.8]} 13... Qxb2
{[%clk 0:02:33.6]} 14. Bh3 {[%clk 0:01:57.1]} 14... Qc1+ {[%clk 0:02:17.5]} 15.
Ke2 {[%clk 0:01:40]} 15... Qxh1 {[%clk 0:02:13.9]} 16. Qb7 {[%clk 0:01:26.3]}
16... Qe4+ {[%clk 0:02:08.9]} 17. Kf1 {[%clk 0:01:23.7]} 17... Qh1+ {[%clk
0:02:05.5]} 18. Ke2 {[%clk 0:01:23.2]} 18... Nb6 {[%clk 0:02:05.4]} 19. Nd2
{[%clk 0:00:20.8]} 19... Qxh3 {[%clk 0:01:56.7]} 20. Kf3 {[%clk 0:00:17.1]}
20... g5 {[%clk 0:01:39.3]} 21. Nc4 {[%clk 0:00:15.6]} 21... Qf5+ {[%clk
0:01:31.7]} 22. Kg2 {[%clk 0:00:13.8]} 22... Qe4+ {[%clk 0:01:31.5]} 23. f3
{[%clk 0:00:14.3]} 23... Qxc4 {[%clk 0:01:30.8]} 24. Rd1 {[%clk 0:00:15.1]}
24... Qe2+ {[%clk 0:01:29.3]} 0-1

[Event "*** SCC Grand Prix: Titled Tuesday Blitz"]
[Site "Chess.com"]
[Date "2020.06.09"]
[Round "10"]
[White "JoachimMouhamad"]
[Black "Mazetovic"]
[Result "0-1"]
[WhiteElo "2481"]
[BlackElo "2634"]
[TimeControl "180+1"]
[EndTime "10:55:50 PDT"]
[Termination "Mazetovic won by checkmate"]

1. e4 {[%clk 0:03:00.9]} 1... c5 {[%clk 0:03:00]} 2. Nf3 {[%clk 0:03:00.3]} 2...
e6 {[%clk 0:02:54.3]} 3. d4 {[%clk 0:02:59.6]} 3... cxd4 {[%clk 0:02:53.4]} 4.
Nxd4 {[%clk 0:03:00.5]} 4... Nc6 {[%clk 0:02:53.6]} 5. Nc3 {[%clk 0:02:59.8]}
5... Qc7 {[%clk 0:02:53.9]} 6. Be3 {[%clk 0:02:56]} 6... Nf6 {[%clk 0:02:51.8]}
7. f4 {[%clk 0:02:45.8]} 7... Nxd4 {[%clk 0:02:46.9]} 8. Bxd4 {[%clk 0:02:41]}
8... Bb4 {[%clk 0:02:43.8]} 9. e5 {[%clk 0:02:25.6]} 9... Nd5 {[%clk 0:02:31.2]}
10. Qd2 {[%clk 0:02:09.8]} 10... Nxc3 {[%clk 0:02:30.9]} 11. bxc3 {[%clk
0:01:59.2]} 11... Be7 {[%clk 0:02:29.9]} 12. Bd3 {[%clk 0:01:56.1]} 12... b6
{[%clk 0:02:26.8]} 13. O-O {[%clk 0:01:51.7]} 13... g6 {[%clk 0:02:22.1]} 14. a4
{[%clk 0:01:30.2]} 14... Bb7 {[%clk 0:02:10.7]} 15. Qe3 {[%clk 0:01:25.1]} 15...
Bc5 {[%clk 0:01:52.6]} 16. a5 {[%clk 0:01:14.6]} 16... O-O {[%clk 0:01:37.8]}
17. f5 {[%clk 0:00:57.3]} 17... exf5 {[%clk 0:01:36.7]} 18. Rxf5 {[%clk
0:00:42.3]} 18... Qc6 {[%clk 0:01:21.8]} 19. Rg5 {[%clk 0:00:26.1]} 19... Rae8
{[%clk 0:01:20.5]} 20. axb6 {[%clk 0:00:21.7]} 20... axb6 {[%clk 0:01:20.4]} 21.
Re1 {[%clk 0:00:19.4]} 21... d6 {[%clk 0:01:18]} 22. Qg3 {[%clk 0:00:16.1]}
22... dxe5 {[%clk 0:01:14.9]} 23. Rgxe5 {[%clk 0:00:15.2]} 23... Rxe5 {[%clk
0:01:13.2]} 24. Qxe5 {[%clk 0:00:14.6]} 24... Qxg2# {[%clk 0:01:12.6]} 0-1

[Event "*** SCC Grand Prix: Titled Tuesday Blitz"]
[Site "Chess.com"]
[Date "2020.06.09"]
[Round "10"]
[White "Bhagya_2312"]
[Black "kuba2006"]
[Result "0-1"]
[WhiteElo "2121"]
[BlackElo "2299"]
[TimeControl "180+1"]
[EndTime "10:55:53 PDT"]
[Termination "kuba2006 won on time"]

1. e4 {[%clk 0:03:00.9]} 1... Nf6 {[%clk 0:03:00.9]} 2. e5 {[%clk 0:02:59.7]}
2... Nd5 {[%clk 0:03:00.7]} 3. d4 {[%clk 0:02:59.9]} 3... d6 {[%clk 0:03:00.9]}
4. Nf3 {[%clk 0:03:00.1]} 4... Bg4 {[%clk 0:03:00]} 5. Be2 {[%clk 0:03:00.1]}
5... c6 {[%clk 0:03:00.1]} 6. c4 {[%clk 0:02:54.3]} 6... Nb6 {[%clk 0:02:58.8]}
7. O-O {[%clk 0:02:13.2]} 7... Bxf3 {[%clk 0:02:57.1]} 8. Bxf3 {[%clk
0:02:07.7]} 8... dxe5 {[%clk 0:02:56.6]} 9. c5 {[%clk 0:01:52.9]} 9... N6d7
{[%clk 0:02:49.9]} 10. dxe5 {[%clk 0:01:39]} 10... Nxe5 {[%clk 0:02:30.8]} 11.
Qxd8+ {[%clk 0:01:32.3]} 11... Kxd8 {[%clk 0:02:31.7]} 12. Be2 {[%clk
0:01:31.7]} 12... Nbd7 {[%clk 0:02:24.5]} 13. Be3 {[%clk 0:01:00.1]} 13... e6
{[%clk 0:02:23.3]} 14. Rd1 {[%clk 0:00:59.8]} 14... Kc7 {[%clk 0:02:05.6]} 15.
Bf4 {[%clk 0:00:59.2]} 15... f6 {[%clk 0:02:05.1]} 16. b4 {[%clk 0:00:51.7]}
16... a5 {[%clk 0:02:01.9]} 17. Nd2 {[%clk 0:00:41.5]} 17... axb4 {[%clk
0:01:50.8]} 18. Nc4 {[%clk 0:00:22.2]} 18... Bxc5 {[%clk 0:01:43.8]} 19. Rxd7+
{[%clk 0:00:19.4]} 19... Kxd7 {[%clk 0:01:43.1]} 20. Bxe5 {[%clk 0:00:14.9]}
20... fxe5 {[%clk 0:01:44]} 21. Nxe5+ {[%clk 0:00:15]} 21... Ke7 {[%clk
0:01:43.4]} 22. Nd3 {[%clk 0:00:13.5]} 22... Bd6 {[%clk 0:01:42.6]} 23. g3
{[%clk 0:00:10.5]} 23... b3 {[%clk 0:01:39.6]} 24. a4 {[%clk 0:00:09.5]} 24...
b5 {[%clk 0:01:31]} 25. a5 {[%clk 0:00:06.3]} 25... c5 {[%clk 0:01:31]} 26. a6
{[%clk 0:00:01.3]} 26... c4 {[%clk 0:01:30.1]} 0-1

[Event "*** SCC Grand Prix: Titled Tuesday Blitz"]
[Site "Chess.com"]
[Date "2020.06.09"]
[Round "10"]
[White "reniite"]
[Black "quesfr"]
[Result "0-1"]
[WhiteElo "1832"]
[BlackElo "2219"]
[TimeControl "180+1"]
[EndTime "10:55:57 PDT"]
[Termination "quesfr won on time"]

1. e4 {[%clk 0:03:00.9]} 1... c5 {[%clk 0:02:58.4]} 2. Nf3 {[%clk 0:03:00]} 2...
d6 {[%clk 0:02:58.3]} 3. d4 {[%clk 0:02:57.6]} 3... cxd4 {[%clk 0:02:59.2]} 4.
Nxd4 {[%clk 0:02:58.5]} 4... Nf6 {[%clk 0:02:59.1]} 5. Nc3 {[%clk 0:02:53.8]}
5... g6 {[%clk 0:02:59]} 6. g3 {[%clk 0:02:43.6]} 6... Nc6 {[%clk 0:02:53.3]} 7.
Bg2 {[%clk 0:02:44.1]} 7... Bg4 {[%clk 0:02:24.7]} 8. f3 {[%clk 0:01:42.3]} 8...
Bd7 {[%clk 0:02:21.2]} 9. O-O {[%clk 0:01:40.7]} 9... Bg7 {[%clk 0:02:20.8]} 10.
Nb3 {[%clk 0:01:39]} 10... O-O {[%clk 0:02:15.3]} 11. Be3 {[%clk 0:01:39.4]}
11... Rc8 {[%clk 0:02:05.5]} 12. Qe2 {[%clk 0:01:38.7]} 12... Ne5 {[%clk
0:01:54.5]} 13. Rad1 {[%clk 0:01:34.7]} 13... Nc4 {[%clk 0:01:52.7]} 14. Bc1
{[%clk 0:01:31.2]} 14... Qb6+ {[%clk 0:01:50.7]} 15. Kh1 {[%clk 0:01:30.3]}
15... Rfd8 {[%clk 0:01:35.2]} 16. Rfe1 {[%clk 0:01:21.9]} 16... Bb5 {[%clk
0:01:00]} 0-1

[Event "*** SCC Grand Prix: Titled Tuesday Blitz"]
[Site "Chess.com"]
[Date "2020.06.09"]
[Round "10"]
[White "evgchess5"]
[Black "TomsKantans"]
[Result "1/2-1/2"]
[WhiteElo "2800"]
[BlackElo "2640"]
[TimeControl "180+1"]
[EndTime "10:56:08 PDT"]
[Termination "Game drawn by repetition"]

1. e4 {[%clk 0:03:00.4]} 1... c5 {[%clk 0:02:59.7]} 2. Nf3 {[%clk 0:02:59.9]}
2... Nf6 {[%clk 0:03:00.3]} 3. e5 {[%clk 0:02:55.8]} 3... Nd5 {[%clk 0:03:00.1]}
4. Nc3 {[%clk 0:02:53.9]} 4... e6 {[%clk 0:03:00.3]} 5. Nxd5 {[%clk 0:02:49.2]}
5... exd5 {[%clk 0:03:01.2]} 6. d4 {[%clk 0:02:49.8]} 6... Nc6 {[%clk
0:03:01.3]} 7. dxc5 {[%clk 0:02:49.6]} 7... Bxc5 {[%clk 0:03:02.2]} 8. Qxd5
{[%clk 0:02:49.7]} 8... Qb6 {[%clk 0:03:02.5]} 9. Bc4 {[%clk 0:02:48.4]} 9...
Bxf2+ {[%clk 0:03:02.6]} 10. Ke2 {[%clk 0:02:47]} 10... O-O {[%clk 0:03:02.7]}
11. Rf1 {[%clk 0:02:46.8]} 11... Bc5 {[%clk 0:03:02.5]} 12. Ng5 {[%clk
0:02:44.6]} 12... Nd4+ {[%clk 0:03:02.6]} 13. Kd1 {[%clk 0:02:44.7]} 13... Ne6
{[%clk 0:03:02.9]} 14. Ne4 {[%clk 0:02:44.7]} 14... d6 {[%clk 0:03:02.9]} 15.
exd6 {[%clk 0:02:44.8]} 15... Rd8 {[%clk 0:03:02.9]} 16. Bd3 {[%clk 0:02:44.1]}
16... Bxd6 {[%clk 0:03:02.4]} 17. Qh5 {[%clk 0:02:43.8]} 17... Bc7 {[%clk
0:03:02.3]} 18. Qxf7+ {[%clk 0:02:32.1]} 18... Kh8 {[%clk 0:03:02.1]} 19. Bd2
{[%clk 0:02:27.3]} 19... Bd7 {[%clk 0:02:47.7]} 20. Bc3 {[%clk 0:02:24.8]} 20...
Bb5 {[%clk 0:02:37.8]} 21. Ng5 {[%clk 0:01:57.7]} 21... Bxd3 {[%clk 0:00:19.3]}
22. cxd3 {[%clk 0:01:57]} 22... Qe3 {[%clk 0:00:19.5]} 23. Nxe6 {[%clk
0:01:40.4]} 23... Qxd3+ {[%clk 0:00:16.4]} 24. Kc1 {[%clk 0:01:38.5]} 24... Qe3+
{[%clk 0:00:15.1]} 25. Kc2 {[%clk 0:01:30.7]} 25... Qe2+ {[%clk 0:00:11.7]} 26.
Kb3 {[%clk 0:01:29.8]} 26... Qb5+ {[%clk 0:00:09.5]} 27. Kc2 {[%clk 0:01:22.6]}
27... Qe2+ {[%clk 0:00:09.2]} 28. Kb3 {[%clk 0:01:17.1]} 28... Qb5+ {[%clk
0:00:09]} 29. Kc2 {[%clk 0:01:17.1]} 29... Qe2+ {[%clk 0:00:08.6]} 1/2-1/2

[Event "*** SCC Grand Prix: Titled Tuesday Blitz"]
[Site "Chess.com"]
[Date "2020.06.09"]
[Round "10"]
[White "SiddharthGMJagadeesh"]
[Black "AliKa2810"]
[Result "0-1"]
[WhiteElo "2443"]
[BlackElo "2590"]
[TimeControl "180+1"]
[EndTime "10:56:10 PDT"]
[Termination "AliKa2810 won by resignation"]

1. d4 {[%clk 0:03:00.9]} 1... Nf6 {[%clk 0:02:58.1]} 2. Nf3 {[%clk 0:03:00.3]}
2... d5 {[%clk 0:02:56.8]} 3. c4 {[%clk 0:02:59.9]} 3... e6 {[%clk 0:02:56.4]}
4. g3 {[%clk 0:02:59.9]} 4... dxc4 {[%clk 0:02:52.4]} 5. Bg2 {[%clk 0:02:59.2]}
5... Bd7 {[%clk 0:02:52.8]} 6. Ne5 {[%clk 0:02:57.1]} 6... Bc6 {[%clk
0:02:52.8]} 7. Nxc6 {[%clk 0:02:57.2]} 7... Nxc6 {[%clk 0:02:53.7]} 8. e3 {[%clk
0:02:57.5]} 8... Qd7 {[%clk 0:02:51]} 9. O-O {[%clk 0:02:57.4]} 9... Nd5 {[%clk
0:02:48.1]} 10. Qc2 {[%clk 0:02:52.7]} 10... h5 {[%clk 0:02:42.5]} 11. Qxc4
{[%clk 0:02:45.3]} 11... h4 {[%clk 0:02:42.6]} 12. Nc3 {[%clk 0:02:45.4]} 12...
O-O-O {[%clk 0:02:39.5]} 13. b4 {[%clk 0:02:30.2]} 13... hxg3 {[%clk 0:02:33.7]}
14. hxg3 {[%clk 0:02:25.9]} 14... Bxb4 {[%clk 0:02:19.6]} 15. Nxd5 {[%clk
0:02:17.3]} 15... exd5 {[%clk 0:02:20.5]} 16. Qc2 {[%clk 0:02:17.7]} 16... Qg4
{[%clk 0:02:06]} 17. Bd2 {[%clk 0:02:02.9]} 17... Qe2 {[%clk 0:01:43.2]} 18.
Rfd1 {[%clk 0:02:00.9]} 18... Rh6 {[%clk 0:01:38.9]} 19. Rab1 {[%clk 0:01:57.9]}
19... Rf6 {[%clk 0:01:22]} 20. Bh3+ {[%clk 0:01:27.9]} 20... Kb8 {[%clk
0:01:21.6]} 21. Bf5 {[%clk 0:01:27.7]} 21... Rh8 {[%clk 0:01:11.3]} 22. Bxb4
{[%clk 0:00:09.5]} 22... Qf3 {[%clk 0:01:04.4]} 23. Bh7 {[%clk 0:00:08.4]} 23...
Rh6 {[%clk 0:01:00.4]} 0-1

[Event "*** SCC Grand Prix: Titled Tuesday Blitz"]
[Site "Chess.com"]
[Date "2020.06.09"]
[Round "10"]
[White "chessplayer9919"]
[Black "Generalas"]
[Result "1-0"]
[WhiteElo "2520"]
[BlackElo "2385"]
[TimeControl "180+1"]
[EndTime "10:56:12 PDT"]
[Termination "chessplayer9919 won on time"]

1. d4 {[%clk 0:03:00.9]} 1... Nf6 {[%clk 0:02:59.5]} 2. c4 {[%clk 0:03:01.4]}
2... c5 {[%clk 0:02:59.4]} 3. d5 {[%clk 0:02:57.6]} 3... b5 {[%clk 0:02:59.2]}
4. cxb5 {[%clk 0:02:54.8]} 4... a6 {[%clk 0:02:58.6]} 5. b6 {[%clk 0:02:52.1]}
5... d6 {[%clk 0:02:56.9]} 6. Nc3 {[%clk 0:02:51.8]} 6... Nbd7 {[%clk 0:02:57]}
7. e4 {[%clk 0:02:50.2]} 7... Rb8 {[%clk 0:02:56.5]} 8. Nf3 {[%clk 0:02:48.2]}
8... g6 {[%clk 0:02:56.1]} 9. Bd3 {[%clk 0:02:45.8]} 9... Bg7 {[%clk 0:02:56]}
10. O-O {[%clk 0:02:45.8]} 10... O-O {[%clk 0:02:56.1]} 11. Nd2 {[%clk
0:02:45.8]} 11... Nxb6 {[%clk 0:02:42.3]} 12. Qe2 {[%clk 0:02:45.3]} 12... a5
{[%clk 0:02:23.6]} 13. f3 {[%clk 0:02:38.5]} 13... Nh5 {[%clk 0:02:16.9]} 14.
Nc4 {[%clk 0:02:34.3]} 14... Nxc4 {[%clk 0:02:08.8]} 15. Bxc4 {[%clk 0:02:35.2]}
15... Rb4 {[%clk 0:01:22.8]} 16. a3 {[%clk 0:02:30.1]} 16... Rb8 {[%clk
0:01:20.9]} 17. Be3 {[%clk 0:02:20.9]} 17... f5 {[%clk 0:01:09.8]} 18. Nb5
{[%clk 0:02:16.4]} 18... f4 {[%clk 0:01:01.1]} 19. Bf2 {[%clk 0:02:15.6]} 19...
Bd7 {[%clk 0:00:57]} 20. a4 {[%clk 0:02:15.1]} 20... Be5 {[%clk 0:00:43.9]} 21.
Rfd1 {[%clk 0:02:04.9]} 21... g5 {[%clk 0:00:42.8]} 22. Be1 {[%clk 0:01:55.9]}
22... Rf6 {[%clk 0:00:39.6]} 23. Bc3 {[%clk 0:01:54.9]} 23... Bxc3 {[%clk
0:00:29.6]} 24. bxc3 {[%clk 0:01:55.3]} 24... g4 {[%clk 0:00:25.5]} 25. e5
{[%clk 0:01:53.4]} 25... Rg6 {[%clk 0:00:16.2]} 26. Bd3 {[%clk 0:01:40.7]} 26...
Bxb5 {[%clk 0:00:11.5]} 27. axb5 {[%clk 0:01:37.1]} 27... gxf3 {[%clk
0:00:09.5]} 28. Qxf3 {[%clk 0:01:36.4]} 28... Rg5 {[%clk 0:00:09.7]} 29. Qe4
{[%clk 0:01:28.3]} 29... dxe5 {[%clk 0:00:01.9]} 30. Qxh7+ {[%clk 0:01:27.7]}
30... Kf8 {[%clk 0:00:02.3]} 31. Bg6 {[%clk 0:01:23.6]} 1-0

[Event "*** SCC Grand Prix: Titled Tuesday Blitz"]
[Site "Chess.com"]
[Date "2020.06.09"]
[Round "10"]
[White "Gloomy_Wanderer"]
[Black "Reader777"]
[Result "1/2-1/2"]
[WhiteElo "2782"]
[BlackElo "2624"]
[TimeControl "180+1"]
[EndTime "10:56:13 PDT"]
[Termination "Game drawn by agreement"]

1. d4 {[%clk 0:03:00.9]} 1... Nf6 {[%clk 0:02:59.7]} 2. Nf3 {[%clk 0:03:00.6]}
2... e6 {[%clk 0:02:59.6]} 3. c4 {[%clk 0:03:00.9]} 3... c5 {[%clk 0:02:57.9]}
4. d5 {[%clk 0:03:00.8]} 4... exd5 {[%clk 0:02:58.5]} 5. cxd5 {[%clk 0:03:01.7]}
5... d6 {[%clk 0:02:59.1]} 6. Nc3 {[%clk 0:03:01.7]} 6... g6 {[%clk 0:02:59.7]}
7. Bf4 {[%clk 0:03:01.5]} 7... a6 {[%clk 0:02:59.9]} 8. e4 {[%clk 0:03:01.6]}
8... b5 {[%clk 0:02:58]} 9. Be2 {[%clk 0:03:01.7]} 9... Bg7 {[%clk 0:02:57.1]}
10. e5 {[%clk 0:03:00]} 10... Nh5 {[%clk 0:02:52.5]} 11. Bg5 {[%clk 0:02:58.6]}
11... f6 {[%clk 0:02:52.4]} 12. Ne4 {[%clk 0:02:57.6]} 12... fxg5 {[%clk
0:02:35.4]} 13. Nxd6+ {[%clk 0:02:57.3]} 13... Kf8 {[%clk 0:02:35.2]} 14. Nxc8
{[%clk 0:02:22.6]} 14... Qxc8 {[%clk 0:02:34.6]} 15. d6 {[%clk 0:02:18.8]} 15...
Nf4 {[%clk 0:02:22.7]} 16. g3 {[%clk 0:01:49.6]} 16... Nxe2 {[%clk 0:01:52.1]}
17. Qxe2 {[%clk 0:01:49.2]} 17... Nc6 {[%clk 0:01:41.8]} 18. e6 {[%clk
0:01:43.7]} 18... Bf6 {[%clk 0:01:39.5]} 19. Qe4 {[%clk 0:01:39.5]} 19... Kg7
{[%clk 0:01:35.7]} 20. O-O {[%clk 0:01:30.4]} 20... Re8 {[%clk 0:01:30.6]} 21.
Rfe1 {[%clk 0:01:30.2]} 21... Qb7 {[%clk 0:01:21.8]} 22. Rad1 {[%clk 0:01:25.4]}
22... Rad8 {[%clk 0:01:20.6]} 23. h4 {[%clk 0:01:03.9]} 23... g4 {[%clk
0:01:11.2]} 24. Qxg4 {[%clk 0:00:54.8]} 24... Nd4 {[%clk 0:01:11.1]} 25. Nxd4
{[%clk 0:00:53.4]} 25... Bxd4 {[%clk 0:01:11.5]} 26. Rxd4 {[%clk 0:00:45.7]}
26... cxd4 {[%clk 0:01:11.2]} 27. Qxd4+ {[%clk 0:00:46.6]} 27... Kg8 {[%clk
0:01:10.4]} 28. e7 {[%clk 0:00:41.6]} 28... Rd7 {[%clk 0:01:05.1]} 29. Qe5
{[%clk 0:00:41.9]} 29... Qc8 {[%clk 0:00:56.5]} 30. Qe6+ {[%clk 0:00:35.9]}
30... Kg7 {[%clk 0:00:56.2]} 31. Qe5+ {[%clk 0:00:36.3]} 31... Kg8 {[%clk
0:00:55.8]} 1/2-1/2

[Event "*** SCC Grand Prix: Titled Tuesday Blitz"]
[Site "Chess.com"]
[Date "2020.06.09"]
[Round "10"]
[White "RusPakhom"]
[Black "Ginger_GM"]
[Result "1-0"]
[WhiteElo "2445"]
[BlackElo "2556"]
[TimeControl "180+1"]
[EndTime "10:56:13 PDT"]
[Termination "RusPakhom won by checkmate"]

1. e4 {[%clk 0:03:00.9]} 1... a6 {[%clk 0:02:49.5]} 2. c4 {[%clk 0:03:00.1]}
2... e6 {[%clk 0:02:47.7]} 3. d4 {[%clk 0:02:59.3]} 3... b5 {[%clk 0:02:43.2]}
4. cxb5 {[%clk 0:02:58.2]} 4... Bb7 {[%clk 0:02:43.3]} 5. Nc3 {[%clk 0:02:46.8]}
5... Bb4 {[%clk 0:02:42.7]} 6. d5 {[%clk 0:02:47.3]} 6... Nf6 {[%clk 0:01:59.4]}
7. bxa6 {[%clk 0:02:33.1]} 7... Nxa6 {[%clk 0:01:57.8]} 8. Qd4 {[%clk
0:02:32.4]} 8... exd5 {[%clk 0:01:35.8]} 9. e5 {[%clk 0:02:32.3]} 9... Ne4
{[%clk 0:01:33]} 10. Bxa6 {[%clk 0:02:31.3]} 10... Bc5 {[%clk 0:01:17.3]} 11.
Qxe4 {[%clk 0:02:00.1]} 11... dxe4 {[%clk 0:01:12.9]} 12. Bxb7 {[%clk
0:02:00.5]} 12... Rb8 {[%clk 0:01:00.8]} 13. Bxe4 {[%clk 0:02:00.3]} 13... d5
{[%clk 0:00:47.4]} 14. exd6 {[%clk 0:01:56.1]} 14... O-O {[%clk 0:00:44.1]} 15.
Nf3 {[%clk 0:01:54.7]} 15... Bxd6 {[%clk 0:00:26.2]} 16. O-O {[%clk 0:01:54.9]}
16... h6 {[%clk 0:00:24.2]} 17. Rd1 {[%clk 0:01:50.5]} 17... Qe7 {[%clk
0:00:19.9]} 18. Re1 {[%clk 0:01:47.1]} 18... Qf6 {[%clk 0:00:17.9]} 19. Be3
{[%clk 0:01:44.8]} 19... Rxb2 {[%clk 0:00:17]} 20. Bd4 {[%clk 0:01:45]} 20...
Qd8 {[%clk 0:00:17.3]} 21. Rad1 {[%clk 0:01:34.5]} 21... Qb8 {[%clk 0:00:15]}
22. Nd5 {[%clk 0:01:30.4]} 22... Rxa2 {[%clk 0:00:15.2]} 23. Ne5 {[%clk
0:01:24]} 23... Qc8 {[%clk 0:00:13.2]} 24. Nc6 {[%clk 0:01:22.4]} 24... Kh8
{[%clk 0:00:11.7]} 25. Nce7 {[%clk 0:01:18.6]} 25... Qa6 {[%clk 0:00:11.8]} 26.
Nf5 {[%clk 0:01:17.4]} 26... Re2 {[%clk 0:00:10.7]} 27. Bxg7+ {[%clk 0:01:13.8]}
27... Kg8 {[%clk 0:00:11]} 28. Nf6# {[%clk 0:01:13.7]} 1-0

[Event "*** SCC Grand Prix: Titled Tuesday Blitz"]
[Site "Chess.com"]
[Date "2020.06.09"]
[Round "10"]
[White "Semen_Khanin"]
[Black "Nyzhnyk_Illia"]
[Result "0-1"]
[WhiteElo "2743"]
[BlackElo "2895"]
[TimeControl "180+1"]
[EndTime "10:56:16 PDT"]
[Termination "Nyzhnyk_Illia won by resignation"]

1. e4 {[%clk 0:03:00.9]} 1... c6 {[%clk 0:02:58.3]} 2. d4 {[%clk 0:03:00.6]}
2... d5 {[%clk 0:02:58.6]} 3. Nd2 {[%clk 0:03:01.5]} 3... dxe4 {[%clk
0:02:55.8]} 4. Nxe4 {[%clk 0:03:02.4]} 4... Nf6 {[%clk 0:02:55.9]} 5. Nxf6+
{[%clk 0:03:03]} 5... exf6 {[%clk 0:02:56.1]} 6. c3 {[%clk 0:03:01.8]} 6... Bd6
{[%clk 0:02:56.3]} 7. Bd3 {[%clk 0:03:02]} 7... O-O {[%clk 0:02:53]} 8. Qc2
{[%clk 0:03:02.5]} 8... Re8+ {[%clk 0:02:51.6]} 9. Ne2 {[%clk 0:03:02.9]} 9...
h6 {[%clk 0:02:51.7]} 10. O-O {[%clk 0:03:02]} 10... Nd7 {[%clk 0:02:51.8]} 11.
Ng3 {[%clk 0:02:59.5]} 11... Nf8 {[%clk 0:02:51.5]} 12. Bd2 {[%clk 0:02:56.9]}
12... Qc7 {[%clk 0:02:48.4]} 13. Rae1 {[%clk 0:02:56.5]} 13... Be6 {[%clk
0:02:48.2]} 14. c4 {[%clk 0:02:54.2]} 14... Rad8 {[%clk 0:02:45.9]} 15. f4
{[%clk 0:02:49.1]} 15... Qb8 {[%clk 0:02:41.1]} 16. Nh5 {[%clk 0:02:44.9]} 16...
Bg4 {[%clk 0:02:37.5]} 17. Ng3 {[%clk 0:02:42.5]} 17... Ne6 {[%clk 0:02:33.5]}
18. h3 {[%clk 0:02:05.4]} 18... Nxd4 {[%clk 0:02:32.5]} 19. Rxe8+ {[%clk
0:02:04.9]} 19... Rxe8 {[%clk 0:02:31.9]} 20. Qc3 {[%clk 0:02:04.8]} 20... Bc5
{[%clk 0:02:06.9]} 21. Kh2 {[%clk 0:01:59.8]} 21... Be2 {[%clk 0:02:07.5]} 22.
b4 {[%clk 0:01:39.2]} 22... Bxb4 {[%clk 0:01:34.8]} 23. Qxd4 {[%clk 0:01:22.2]}
23... c5 {[%clk 0:01:26.6]} 24. Bxb4 {[%clk 0:00:46.4]} 24... cxd4 {[%clk
0:01:19.7]} 25. Nxe2 {[%clk 0:00:43.7]} 25... Re3 {[%clk 0:01:19.4]} 26. Rd1
{[%clk 0:00:27.7]} 26... b6 {[%clk 0:01:12]} 27. g3 {[%clk 0:00:17.5]} 27... g5
{[%clk 0:01:11.5]} 28. Be1 {[%clk 0:00:15.8]} 28... Qe8 {[%clk 0:01:09.6]} 29.
Nxd4 {[%clk 0:00:07.4]} 29... Rxe1 {[%clk 0:01:08.5]} 30. Rd2 {[%clk 0:00:08]}
30... Qe3 {[%clk 0:01:07.9]} 0-1